[Event "Istanbul Open 2017"]
[Site "Istanbul"]
[Date "2017.09.17"]
[Round "9"]
[White "Tarakci, Efdal"]
[Black "Nukan, Baris Tuna"]
[Result "1/2-1/2"]
[ECO "B45"]
[WhiteElo "1714"]
[BlackElo "1656"]
[Annotator "NA RC"]
[PlyCount "90"]
[EventDate "2017.??.??"]
[EventType "swiss"]
[EventCountry "TUR"]
[SourceTitle "playchess.com"]
[Source "ChessBase"]
[SourceQuality "1"]
[TimeControl "5400+30"]

1. e4 {[%emt 0:00:30]} c5 {[%emt 0:01:00]} 2. Nf3 {[%emt 0:00:30]} e6 {[%emt 0:00:00]} 3. d4 {[%emt 0:01:30]} cxd4 {[%emt 0:00:00]} 4. Nxd4 {[%emt 0:00:30]} Nf6 {[%emt 0:00:30]} 5. Nc3 {[%emt 0:01:30]} Nc6 {[%emt 0:01:30]} 6. Ndb5 {[%emt 0:04:30]} Bb4 {[%emt 0:00:30]} 7. Nd6+ {[%emt 0:01:30]} Ke7 {[%emt 0:00:30]} 8. Nxc8+ {[%emt 0:15:30]} Rxc8 {[%emt 0:00:30]} 9. Bd3 {[%emt 0:00:30]} d5 {[%emt 0:09:30]} 10. exd5 {[%emt 0:03:30]} Nxd5 {[%emt 0:01:30]} 11. Bg5+ {[%emt 0:02:30]} f6 {[%emt 0:00:30]} 12. Bd2 {[%emt 0:00:30]} Nxc3 {[%emt 0:00:00]} 13. bxc3 {[%emt 0:00:30]} Bd6 {[%emt 0:00:00]} 14. Qg4 {[%emt 0:00:30]} Kf7 {[%emt 0:03:30]} 15. O-O {[%emt 0:10:30]} Ne5 {[%emt 0:03:30]} 16. Qe4 {[%emt 0:00:30]} Qe7 {[%emt 0:01:30]} 17. Rab1 {[%emt 0:02:30]} Nxd3 {[%emt 0:03:30]} 18. cxd3 {[%emt 0:04:30]} b6 {[%emt 0:01:30]} 19. Rfe1 {[%emt 0:00:30]} Rhe8 {[%emt 0:03:30]} 20. Re3 {[%emt 0:01:30]} Kg8 {[%emt 0:04:30]} 21. Rbe1 {[%emt 0:00:30]} Qf7 {[%emt 0:03:30]} 22. Rh3 {[%emt 0:05:30]} f5 {[%emt 0:04:30]} 23. Qh4 {[%emt 0:02:30]} g6 {[%emt 0:00:30]} 24. d4 {[%emt 0:12:30]} e5 {[%emt 0:04:30]} 25. dxe5 {[%emt 0:03:30]} Bxe5 {[%emt 0:00:30]} 26. Rhe3 {[%emt 0:01:30]} Bg7 {[%emt 0:02:30]} 27. Rxe8+ {[%emt 0:20:30]} Rxe8 {[%emt 0:00:00]} 28. Rxe8+ {[%emt 0:00:25]} Qxe8 {[%emt 0:00:00]} 29. Qc4+ {[%emt 0:00:19]} Qf7 {[%emt 0:00:30]} 30. Qc8+ {[%emt 0:00:33]} Qf8 {[%emt 0:06:30]} 31. Qd7 {[%emt 0:01:39]} Qf7 {[%emt 0:00:30]} 32. Qc8+ {[%emt 0:00:15]} Qf8 {[%emt 0:00:30]} 33. Qxf8+ {[%emt 0:01:48]} Kxf8 {[%emt 0:00:30]} 34. Kf1 {[%emt 0:00:06]} Ke7 {[%emt 0:00:00]} 35. Ke2 {[%emt 0:00:17]} Kd6 {[%emt 0:00:00]} 36. Kd3 {[%emt 0:00:15]} Kc5 {[%emt 0:01:30]} 37. a4 {[%emt 0:00:15]} Kd5 {[%emt 0:00:30]} 38. Be3 {[%emt 0:01:09]} Bf8 {[%emt 0:00:30]} 39. Bf4 {[%emt 0:00:57]} a6 {[%emt 0:01:30]} 40. Bg5 {[%emt 0:00:58]} b5 {[%emt 0:00:30]} 41. axb5 {[%emt 0:00:02]} axb5 {[%emt 0:00:00]} 42. Bf6 {[%emt 0:00:51]} Bd6 {[%emt 0:00:00]} 43. h3 {[%emt 0:00:23]} Be5 {[%emt 0:01:30]} 44. Bg5 {[%emt 0:00:34]} Bd6 {[%emt 0:00:30]} 45. Bh6 {[%emt 0:00:28]} Bc5 {[%emt 0:00:30]} 1/2-1/2

[Event "Istanbul Open 2017"]
[Site "Istanbul"]
[Date "2017.09.17"]
[Round "9"]
[White "Gezici, Omer Ata"]
[Black "Demirel, Ali Yagmur"]
[Result "0-1"]
[ECO "C03"]
[WhiteElo "1701"]
[BlackElo "1718"]
[Annotator "NA RC"]
[PlyCount "89"]
[EventDate "2017.??.??"]
[EventType "swiss"]
[EventCountry "TUR"]
[SourceTitle "playchess.com"]
[Source "ChessBase"]
[SourceQuality "1"]
[TimeControl "5400+30"]

1. e4 {[%emt 0:09:30]} e6 {[%emt 0:03:00]} 2. d4 {[%emt 0:00:30]} d5 {[%emt 0:00:30]} 3. Nd2 {[%emt 0:00:30]} h6 {[%emt 0:00:30]} 4. Ngf3 {[%emt 0:00:30]} Nf6 {[%emt 0:00:30]} 5. Bd3 {[%emt 0:00:30]} c5 {[%emt 0:00:30]} 6. exd5 {[%emt 0:00:30]} Nxd5 {[%emt 0:00:30]} 7. c3 {[%emt 0:00:30]} Nc6 {[%emt 0:00:30]} 8. Nb3 {[%emt 0:01:30]} cxd4 {[%emt 0:00:30]} 9. Nbxd4 {[%emt 0:00:30]} Bc5 {[%emt 0:00:30]} 10. Nb3 {[%emt 0:04:30]} Bb6 {[%emt 0:00:30]} 11. O-O {[%emt 0:00:30]} Qf6 {[%emt 0:00:30]} 12. Bc4 {[%emt 0:08:30]} O-O {[%emt 0:00:30]} 13. Qe2 {[%emt 0:02:30]} Bd7 {[%emt 0:01:30]} 14. Rd1 {[%emt 0:06:30]} Rfe8 {[%emt 0:00:30]} 15. Nbd4 {[%emt 0:03:30]} Nxd4 {[%emt 0:00:30]} 16. Nxd4 {[%emt 0:00:30]} e5 {[%emt 0:00:30]} 17. Nb3 {[%emt 0:00:30]} Nf4 {[%emt 0:00:30]} 18. Bxf4 {[%emt 0:00:30]} exf4 {[%emt 0:00:30]} 19. Qf3 {[%emt 0:00:30]} Bf5 {[%emt 0:00:30]} 20. Bd5 {[%emt 0:00:30]} Qg5 {[%emt 0:20:30]} 21. h3 {[%emt 0:18:30]} Bg6 {[%emt 0:04:30]} 22. Qg4 {[%emt 0:07:30]} Qxg4 {[%emt 0:02:30]} 23. hxg4 {[%emt 0:00:00]} Re2 {[%emt 0:00:00]} 24. Nd4 {[%emt 0:04:00]} Rxb2 {[%emt 0:00:00]} 25. Bxb7 {[%emt 0:00:30]} Re8 {[%emt 0:00:30]} 26. Bf3 {[%emt 0:04:30]} Rc8 {[%emt 0:00:30]} 27. Rdc1 {[%emt 0:08:49]} Bd3 {[%emt 0:02:30]} 28. a4 {[%emt 0:01:07]} a5 {[%emt 0:00:30]} 29. Bb7 {[%emt 0:02:37]} Rc7 {[%emt 0:00:30]} 30. Bf3 {[%emt 0:00:42]} Rc8 {[%emt 0:00:30]} 31. Bb7 {[%emt 0:00:10]} Rd8 {[%emt 0:00:30]} 32. Rd1 {[%emt 0:00:56]} Bxd4 {[%emt 0:00:30]} 33. cxd4 {[%emt 0:07:12]} Be2 {[%emt 0:00:30]} 34. Re1 {[%emt 0:00:37]} Rxd4 {[%emt 0:00:30]} 35. Bf3 {[%emt 0:00:37]} Rdd2 {[%emt 0:00:30]} 36. Bxe2 {[%emt 0:00:36]} Rxe2 {[%emt 0:00:30]} 37. Rxe2 {[%emt 0:00:36]} Rxe2 {[%emt 0:00:30]} 38. Kf1 {[%emt 0:00:41]} Re4 {[%emt 0:00:30]} 39. f3 {[%emt 0:00:03]} Rd4 {[%emt 0:00:30]} 40. Ke2 {[%emt 0:00:30]} Kh7 {[%emt 0:00:30]} 41. Ra2 {[%emt 0:00:35]} Kg6 {[%emt 0:00:30]} 42. Ra1 {[%emt 0:01:02]} Kg5 {[%emt 0:00:30]} 43. Rh1 {[%emt 0:00:30]} Rxa4 {[%emt 0:00:30]} 44. Rh5+ {[%emt 0:00:30]} Kg6 {[%emt 0:03:30]} 45. Rb5 {[%emt 0:05:03]} 0-1

[Event "Istanbul Open 2017"]
[Site "Istanbul"]
[Date "2017.09.17"]
[Round "9"]
[White "Adanmis, Ezgi"]
[Black "Bagci, Hikmet"]
[Result "1-0"]
[ECO "B21"]
[WhiteElo "1626"]
[BlackElo "1706"]
[Annotator "NA RC"]
[PlyCount "119"]
[EventDate "2017.??.??"]
[EventType "swiss"]
[EventCountry "TUR"]
[SourceTitle "playchess.com"]
[Source "ChessBase"]
[SourceQuality "1"]
[TimeControl "5400+30"]

1. e4 {[%emt 0:00:30]} c5 {[%emt 0:01:00]} 2. Nf3 {[%emt 0:00:00]} d6 {[%emt 0:00:00]} 3. d4 {[%emt 0:00:00]} cxd4 {[%emt 0:00:00]} 4. c4 {[%emt 0:00:30]} dxc3 {[%emt 0:00:30]} 5. Nxc3 {[%emt 0:00:00]} Nc6 {[%emt 0:00:30]} 6. Bc4 {[%emt 0:00:00]} e6 {[%emt 0:00:30]} 7. O-O {[%emt 0:00:30]} Be7 {[%emt 0:00:00]} 8. Bf4 {[%emt 0:03:30]} Nf6 {[%emt 0:01:00]} 9. Qe2 {[%emt 0:04:30]} O-O {[%emt 0:03:30]} 10. Rfd1 {[%emt 0:01:30]} Nh5 {[%emt 0:00:30]} 11. Be3 {[%emt 0:01:30]} a6 {[%emt 0:02:30]} 12. a4 {[%emt 0:03:30]} Qc7 {[%emt 0:01:30]} 13. Rac1 {[%emt 0:11:30]} Qb8 {[%emt 0:00:30]} 14. Nd4 {[%emt 0:06:30]} Nf6 {[%emt 0:00:00]} 15. Nf3 {[%emt 0:17:30]} Bd7 {[%emt 0:06:00]} 16. Bf4 {[%emt 0:06:30]} e5 {[%emt 0:00:30]} 17. Bg5 {[%emt 0:01:30]} Bg4 {[%emt 0:00:30]} 18. Bxf6 {[%emt 0:03:30]} Bxf6 {[%emt 0:04:30]} 19. Nd5 {[%emt 0:01:30]} Qd8 {[%emt 0:02:30]} 20. Qd3 {[%emt 0:05:30]} Bg5 {[%emt 0:01:30]} 21. Rc3 {[%emt 0:06:30]} Bxf3 {[%emt 0:03:30]} 22. Qxf3 {[%emt 0:00:30]} Nd4 {[%emt 0:00:00]} 23. Qh5 {[%emt 0:02:30]} g6 {[%emt 0:00:00]} 24. Qg4 {[%emt 0:01:30]} h5 {[%emt 0:01:30]} 25. Qh3 {[%emt 0:02:26]} b5 {[%emt 0:01:30]} 26. Ba2 {[%emt 0:01:16]} Ne2+ {[%emt 0:00:30]} 27. Kh1 {[%emt 0:01:39]} Nxc3 {[%emt 0:01:30]} 28. bxc3 {[%emt 0:00:36]} Kg7 {[%emt 0:00:30]} 29. g3 {[%emt 0:00:41]} Rb8 {[%emt 0:04:30]} 30. f4 {[%emt 0:00:11]} exf4 {[%emt 0:00:30]} 31. gxf4 {[%emt 0:00:02]} Bf6 {[%emt 0:01:30]} 32. Rg1 {[%emt 0:00:32]} Rh8 {[%emt 0:00:30]} 33. Qe3 {[%emt 0:03:07]} Re8 {[%emt 0:04:30]} 34. Qf3 {[%emt 0:01:01]} bxa4 {[%emt 0:01:30]} 35. f5 {[%emt 0:00:34]} Rh8 {[%emt 0:03:30]} 36. fxg6 {[%emt 0:01:09]} fxg6 {[%emt 0:00:30]} 37. Qf5 {[%emt 0:00:22]} Rh6 {[%emt 0:00:30]} 38. Qe6 {[%emt 0:01:20]} g5 {[%emt 0:08:30]} 39. Ne3 {[%emt 0:04:08]} Rg6 {[%emt 0:00:30]} 40. Qf7+ {[%emt 0:00:14]} Kh8 {[%emt 0:00:30]} 41. Qxg6 {[%emt 0:00:03]} Rb7 {[%emt 0:01:30]} 42. Bf7 {[%emt 0:00:14]} Rxf7 {[%emt 0:01:30]} 43. Qxf7 {[%emt 0:00:02]} h4 {[%emt 0:02:30]} 44. Rf1 {[%emt 0:00:45]} Be5 {[%emt 0:00:30]} 45. Qh5+ {[%emt 0:00:50]} Kg8 {[%emt 0:00:30]} 46. Rf7 {[%emt 0:00:08]} Bg7 {[%emt 0:00:30]} 47. Qg6 {[%emt 0:00:11]} Qf8 {[%emt 0:00:30]} 48. Rxf8+ {[%emt 0:00:04]} Kxf8 {[%emt 0:00:30]} 49. Qxd6+ {[%emt 0:00:06]} Kf7 {[%emt 0:00:30]} 50. Nd5 {[%emt 0:00:59]} g4 {[%emt 0:00:30]} 51. Qd7+ {[%emt 0:00:23]} Kg8 {[%emt 0:00:00]} 52. Qxg4 {[%emt 0:00:08]} h3 {[%emt 0:00:00]} 53. Qxh3 {[%emt 0:00:15]} a3 {[%emt 0:00:30]} 54. Qc8+ {[%emt 0:00:15]} Kf7 {[%emt 0:00:00]} 55. Qxa6 {[%emt 0:00:06]} a2 {[%emt 0:00:00]} 56. Qxa2 {[%emt 0:00:05]} Ke6 {[%emt 0:00:30]} 57. Qf2 {[%emt 0:01:01]} Be5 {[%emt 0:00:30]} 58. Qf5+ {[%emt 0:00:44]} Kd6 {[%emt 0:00:00]} 59. h4 {[%emt 0:00:00]} Bh8 {[%emt 0:00:00]} 60. Qf8+ {[%emt 0:00:06]} 1-0

[Event "Istanbul Open 2017"]
[Site "Istanbul"]
[Date "2017.09.17"]
[Round "9"]
[White "Inciler, Yusuf Efe"]
[Black "Sar, Can"]
[Result "0-1"]
[ECO "D85"]
[WhiteElo "1494"]
[BlackElo "1669"]
[Annotator "NA RC"]
[PlyCount "60"]
[EventDate "2017.??.??"]
[EventType "swiss"]
[EventCountry "TUR"]
[SourceTitle "playchess.com"]
[Source "ChessBase"]
[SourceQuality "1"]
[TimeControl "5400+30"]

1. d4 {[%emt 0:00:30]} Nf6 {[%emt 0:01:00]} 2. c4 {[%emt 0:00:00]} g6 {[%emt 0:00:30]} 3. Nc3 {[%emt 0:00:00]} d5 {[%emt 0:00:00]} 4. cxd5 {[%emt 0:00:00]} Nxd5 {[%emt 0:00:00]} 5. e4 {[%emt 0:00:00]} Nxc3 {[%emt 0:00:00]} 6. bxc3 {[%emt 0:00:30]} Bg7 {[%emt 0:00:00]} 7. Nf3 {[%emt 0:00:00]} c5 {[%emt 0:00:30]} 8. Rb1 {[%emt 0:00:00]} O-O {[%emt 0:00:30]} 9. Be2 {[%emt 0:00:30]} cxd4 {[%emt 0:00:30]} 10. cxd4 {[%emt 0:00:30]} Qa5+ {[%emt 0:00:30]} 11. Qd2 {[%emt 0:00:30]} Qxd2+ {[%emt 0:03:30]} 12. Bxd2 {[%emt 0:00:00]} Nc6 {[%emt 0:01:30]} 13. Be3 {[%emt 0:02:00]} Bg4 {[%emt 0:02:30]} 14. d5 {[%emt 0:03:30]} Bxf3 {[%emt 0:10:30]} 15. Bxf3 {[%emt 0:02:30]} Nd4 {[%emt 0:06:30]} 16. Bxd4 {[%emt 0:01:30]} Bxd4 {[%emt 0:00:00]} 17. Rxb7 {[%emt 0:00:30]} Rab8 {[%emt 0:07:00]} 18. Rxe7 {[%emt 0:07:30]} Rb2 {[%emt 0:00:30]} 19. O-O {[%emt 0:01:30]} Rfb8 {[%emt 0:00:30]} 20. Rc7 {[%emt 0:00:30]} Rxf2 {[%emt 0:01:30]} 21. Rc4 {[%emt 0:01:30]} Be3 {[%emt 0:01:30]} 22. Rcc1 {[%emt 0:04:30]} Rxf3+ {[%emt 0:00:30]} 23. Kh1 {[%emt 0:00:30]} Rxf1+ {[%emt 0:00:30]} 24. Rxf1 {[%emt 0:00:00]} Bd4 {[%emt 0:00:30]} 25. h3 {[%emt 0:00:00]} Be5 {[%emt 0:00:00]} 26. Rd1 {[%emt 0:00:30]} Kf8 {[%emt 0:00:00]} 27. Kg1 {[%emt 0:00:30]} Ke7 {[%emt 0:00:30]} 28. Rc1 {[%emt 0:00:30]} Rb2 {[%emt 0:00:30]} 29. a4 {[%emt 0:01:30]} a5 {[%emt 0:00:00]} 30. Rc5 {[%emt 0:00:30]} Bd4+ {[%emt 0:00:00]} 0-1